bitfinex-derivatives/quotes_BTCF0:USTF0_20250926
["timestamp","ask_amount","ask_price","bid_price","bid_amount"]
[1758917735040,2.0573307,109340.0,109330.0,0.1079376]
[1758917736047,1.3745992,109340.0,109330.0,0.1079376]
[1758917736343,0.5277992,109340.0,109330.0,0.1079376]
[1758917736546,1.3745992,109340.0,109330.0,0.1079376]
[1758917738143,0.9745992,109340.0,109330.0,0.1079376]
[1758917738542,0.1277992,109340.0,109330.0,0.1079376]
[1758917738844,0.9745992,109340.0,109330.0,0.1079376]
[1758917740346,0.03641,109340.0,109330.0,0.7906691]
[1758917740552,0.1277992,109340.0,109330.0,0.1079376]
[1758917742045,0.1277992,109340.0,109330.0,0.1079375]
[1758917742244,0.1277992,109340.0,109330.0,0.01654]
[1758917742746,0.36927451,109340.0,109330.0,0.25801531]
[1758917743146,0.36927451,109340.0,109330.0,0.34941281]
[1758917743347,0.03641,109340.0,109330.0,0.71021281]
[1758917743644,0.36927441,109340.0,109330.0,0.71021281]
[1758917745447,0.36927441,109340.0,109330.0,0.34941281]
[1758917745647,0.36927441,109340.0,109330.0,0.71021281]
[1758917745648,0.03641,109340.0,109330.0,0.71021281]
[1758917746647,0.1277991,109340.0,109330.0,0.71021281]
[1758917747047,0.03641,109340.0,109330.0,0.71021281]
[1758917747740,0.1277991,109340.0,109330.0,0.4687375]
[1758917747940,0.1277991,109340.0,109330.0,0.71021281]
[1758917748346,0.01391,109340.0,109330.0,0.71021281]
[1758917748846,0.03533,109340.0,109330.0,0.71021281]
[1758917750148,0.01391,109340.0,109330.0,0.71021281]
[1758917750945,0.01391,109340.0,109330.0,1.55685281]
[1758917752852,0.03533,109340.0,109330.0,1.55685281]
[1758917753455,0.01391,109340.0,109330.0,1.55685281]
[1758917755648,0.01391,109340.0,109330.0,0.71021281]
[1758917755848,0.03533,109340.0,109330.0,0.71021281]
[1758917756058,0.03533,109340.0,109330.0,0.72884824]
[1758917756257,0.03533,109340.0,109330.0,1.57540824]
[1758917757164,0.1267191,109340.0,109330.0,0.48737293]
[1758917757358,0.36819441,109340.0,109330.0,0.72884824]
[1758917757659,0.36819441,109340.0,109330.0,1.57536824]
[1758917758560,0.1267191,109340.0,109330.0,1.57536824]
[1758917758863,0.1267191,109340.0,109330.0,0.72884824]
[1758917759263,0.1267191,109340.0,109330.0,1.57532824]
[1758917760363,0.1267191,109340.0,109330.0,0.72884824]
[1758917760670,0.1267191,109340.0,109330.0,1.57532824]
[1758917761066,0.1267191,109340.0,109330.0,0.72884824]
[1758917761666,0.1267191,109340.0,109330.0,1.57528824]
[1758917761855,0.1267191,109340.0,109330.0,0.72884824]
[1758917762165,0.1267191,109340.0,109330.0,1.57528824]
[1758917762370,0.1267191,109340.0,109330.0,0.72884824]
[1758917762863,0.1267191,109340.0,109330.0,1.57524824]
[1758917763066,0.36819441,109340.0,109330.0,0.72884824]
[1758917763259,0.36819441,109340.0,109330.0,1.57524824]
[1758917763859,0.36819441,109340.0,109330.0,0.72884824]
[1758917764268,0.36819441,109340.0,109330.0,1.57524824]
[1758917764769,0.1267191,109340.0,109330.0,0.72884824]
[1758917764969,0.36819441,109340.0,109330.0,0.72884824]
[1758917765169,0.36819441,109340.0,109330.0,1.57520824]
[1758917765364,0.36819441,109340.0,109330.0,1.33373293]
[1758917765564,0.36819441,109340.0,109330.0,1.57520824]
[1758917767972,0.36819441,109340.0,109330.0,1.33369293]
[1758917768173,0.36819441,109340.0,109330.0,1.57516824]
[1758917770175,0.27680531,109340.0,109330.0,1.57516824]
[1758917770677,0.03533,109340.0,109330.0,1.57516824]
[1758917773181,0.1267191,109340.0,109330.0,1.57516824]
[1758917775579,0.36819441,109340.0,109330.0,1.57516824]
[1758917775985,0.36819441,109340.0,109330.0,0.72884824]
[1758917776281,0.36819441,109340.0,109330.0,1.57496824]
[1758917777182,0.1267191,109340.0,109330.0,1.57496824]
[1758917777383,0.36819441,109340.0,109330.0,1.57496824]
[1758917777879,0.1267191,109340.0,109330.0,1.57496824]
[1758917778078,0.36819441,109340.0,109330.0,1.57496824]
[1758917779183,0.36819441,109340.0,109330.0,1.21416824]
[1758917779384,0.72899441,109340.0,109330.0,0.97261293]
[1758917779577,0.72899441,109340.0,109330.0,1.21408824]
[1758917779976,0.72899441,109340.0,109330.0,0.36804824]
[1758917780175,0.72899441,109340.0,109330.0,1.21408824]
[1758917780377,0.36819441,109340.0,109330.0,1.21408824]
[1758917786294,0.36819441,109340.0,109330.0,0.36804824]
[1758917786596,0.36819441,109340.0,109330.0,1.21392824]
[1758917786887,0.99483297,109340.0,109330.0,0.97241293]
[1758917787190,0.51188235,109340.0,109330.0,0.97241293]
[1758917787387,0.75335766,109340.0,109330.0,1.21388824]
[1758917787594,0.15108235,109340.0,109330.0,1.21388824]
[1758917787894,0.36819441,109340.0,109330.0,1.21388824]
[1758917789193,0.1267191,109340.0,109330.0,1.21388824]
[1758917789391,0.39255538,109340.0,109330.0,1.21388824]
[1758917790091,0.39255538,109340.0,109330.0,1.57468824]
[1758917790291,0.39255538,109340.0,109330.0,0.97241293]
[1758917790484,0.15108007,109340.0,109330.0,1.21388824]
[1758917790685,0.39255538,109340.0,109330.0,1.57468824]
[1758917792796,0.39255538,109340.0,109330.0,0.48737293]
[1758917793096,0.39255538,109340.0,109330.0,0.72884824]
[1758917793291,0.39255538,109340.0,109330.0,1.57452824]
[1758917794692,0.39255538,109340.0,109330.0,1.21372824]
[1758917794892,0.75335538,109340.0,109330.0,0.27665074]
[1758917795099,1.39483069,109340.0,109330.0,0.001]
[1758917795693,2.2404702,109340.0,109330.0,0.001]
[1758917797798,2.2404702,109340.0,109310.0,0.01554]
[1758917797799,0.1276759,109320.0,109310.0,0.01554]
[1758917797993,0.97142652,109320.0,109310.0,0.01554]
[1758917798707,0.1276843,109310.0,109300.0,1.28625532]
[1758917798906,0.36915961,109310.0,109300.0,1.28625532]
[1758917799108,0.36615961,109310.0,109300.0,0.34927272]
[1758917799407,0.36615961,109310.0,109300.0,0.01554]
[1758917799706,0.72695961,109310.0,109300.0,0.01554]
[1758917799907,0.72695961,109310.0,109300.0,0.02054]
[1758917800499,0.4854843,109310.0,109300.0,0.1119627]
[1758917800700,0.72695961,109310.0,109300.0,0.1119627]
[1758917801709,0.72695961,109310.0,109300.0,0.02054]
[1758917802702,0.80764543,109310.0,109300.0,0.1119626]
[1758917804397,0.80764543,109310.0,109300.0,0.02054]
[1758917804607,0.80764543,109310.0,109300.0,0.005]
[1758917804608,1.20764543,109310.0,109300.0,0.005]
[1758917805605,2.05316543,109310.0,109300.0,0.005]
[1758917806205,0.104731,109290.0,109280.0,0.4677738]
[1758917806413,0.125701,109290.0,109280.0,1.3132538]
[1758917806910,0.125701,109290.0,109280.0,0.4677738]
[1758917807112,0.125701,109290.0,109280.0,1.3132538]
[1758917807512,0.125701,109290.0,109280.0,0.47710496]
[1758917807715,0.125701,109290.0,109280.0,1.32258496]
[1758917808305,0.125701,109290.0,109280.0,1.32758496]
[1758917808706,0.125701,109290.0,109280.0,0.48210496]
[1758917808903,0.44786213,109290.0,109280.0,0.02054]
[1758917809308,0.125701,109290.0,109280.0,0.02054]
[1758917809614,0.125701,109290.0,109280.0,0.01554]
[1758917809815,0.80866213,109290.0,109280.0,0.004]
[1758917810017,2.05410213,109290.0,109280.0,0.004]
[1758917811211,0.1267094,109280.0,109270.0,0.10708086]
[1758917811817,0.03627,109280.0,109270.0,0.79004199]
[1758917812808,0.1277094,109280.0,109270.0,0.79104199]
[1758917813514,0.1047371,109290.0,109270.0,1.19104199]
[1758917813713,0.1277071,109290.0,109280.0,0.1069794]
[1758917815214,0.1277071,109290.0,109280.0,0.4677794]
[1758917815517,0.1287071,109290.0,109280.0,0.4677794]
[1758917818920,0.1287008,109290.0,109280.0,0.4677794]
[1758917819419,0.03727,109290.0,109280.0,0.78994053]
[1758917819619,0.001,109290.0,109280.0,1.19488053]
[1758917820309,0.0143,109290.0,109280.0,2.03530053]
[1758917821218,0.0143,109290.0,109280.0,1.18994053]
[1758917821421,0.0143,109290.0,109280.0,2.03526053]
[1758917822721,0.0143,109290.0,109280.0,2.03522053]
[1758917823024,0.001,109290.0,109280.0,2.04016053]
[1758917824222,0.001,109290.0,109280.0,2.03522053]
[1758917824818,0.001,109290.0,109280.0,1.18994053]
[1758917825020,0.0143,109290.0,109280.0,2.03522053]
[1758917826520,0.0143,109290.0,109280.0,1.18994053]
[1758917826724,0.0143,109290.0,109280.0,2.03510053]
[1758917827820,0.0143,109290.0,109280.0,1.18994053]
[1758917828018,0.1287008,109290.0,109280.0,2.03506053]
[1758917828418,0.001,109290.0,109280.0,2.03506053]
[1758917829120,0.01462,109290.0,109280.0,2.03506053]
[1758917829515,0.001,109290.0,109280.0,1.3178394]
[1758917829825,0.001,109290.0,109280.0,1.64000053]
[1758917832020,0.02272,109290.0,109280.0,0.78994053]
[1758917832325,0.03634,109290.0,109280.0,1.63498053]
[1758917833121,0.03634,109290.0,109280.0,1.63494053]
[1758917833322,0.001,109290.0,109280.0,1.63494053]
[1758917833521,0.001,109290.0,109280.0,1.63988053]
[1758917833715,0.001,109290.0,109280.0,2.45354552]
[1758917835922,0.1264352,109310.0,109300.0,0.1069624]
[1758917836124,0.15092812,109310.0,109300.0,1.63484353]
[1758917837229,0.15392812,109310.0,109300.0,1.63484353]
[1758917838227,0.15392812,109310.0,109300.0,0.78992353]
[1758917838524,0.51472812,109310.0,109300.0,0.01554]
[1758917838728,1.23688925,109310.0,109300.0,0.01554]
[1758917839033,0.1267624,109300.0,109290.0,0.6376858]
[1758917839829,0.1267624,109300.0,109290.0,0.9517658]
[1758917840221,0.1277624,109300.0,109290.0,0.9517658]
[1758917840528,0.1277624,109300.0,109290.0,0.1069658]
[1758917840929,0.1277624,109300.0,109290.0,0.9517258]
[1758917841529,0.1277624,109300.0,109290.0,1.27388693]
[1758917841733,0.1267624,109300.0,109290.0,1.27388693]
[1758917841923,0.1297624,109300.0,109290.0,0.42912693]
[1758917842123,0.1297624,109300.0,109290.0,0.9516858]
[1758917842725,0.1297624,109300.0,109290.0,1.27384693]
[1758917845235,0.1297624,109300.0,109290.0,1.27380693]
[1758917845929,0.1297624,109300.0,109290.0,0.1069658]
[1758917846139,0.4905624,109300.0,109290.0,0.01554]
[1758917846432,1.21272353,109300.0,109290.0,0.1069708]
[1758917846632,1.23723104,109300.0,109290.0,0.1069708]
[1758917849034,0.91506991,109300.0,109290.0,0.1069708]
[1758917850736,0.91506991,109300.0,109290.0,0.01554]
[1758917851236,1.23723104,109300.0,109290.0,0.1069707]
[1758917851535,1.21272353,109300.0,109290.0,0.1069707]
[1758917852038,1.21272353,109300.0,109290.0,0.01554]
[1758917852236,0.1050508,109290.0,109280.0,1.61891373]
[1758917852928,0.1050508,109290.0,109280.0,1.3122126]
[1758917852929,0.1267708,109290.0,109280.0,1.3122126]
[1758917853338,0.1267708,109290.0,109280.0,0.4677726]
[1758917853532,0.1267708,109290.0,109280.0,1.3122126]
[1758917854540,0.1277708,109290.0,109280.0,1.3122126]
[1758917854737,0.1277708,109290.0,109280.0,1.63437373]
[1758917855433,0.1277708,109290.0,109280.0,1.63433373]
[1758917856542,0.1277708,109290.0,109280.0,1.3121726]
[1758917857043,0.1277708,109290.0,109280.0,1.63433373]
[1758917862947,0.1277708,109290.0,109280.0,1.63417373]
[1758917864553,0.1277708,109290.0,109280.0,1.55367133]
[1758917864938,0.1277708,109290.0,109280.0,1.79533006]
[1758917867647,0.1277708,109290.0,109280.0,0.95109006]
[1758917867952,0.1277708,109290.0,109280.0,1.79521006]
[1758917868147,0.1277708,109290.0,109280.0,1.55355133]
[1758917869355,0.1277708,109290.0,109280.0,1.79521006]
[1758917871649,0.1277708,109290.0,109280.0,0.95109006]
[1758917871850,0.1137691,109280.0,109270.0,0.48626744]
[1758917872051,0.36896783,109280.0,109270.0,0.12546744]
[1758917872254,0.36896783,109280.0,109270.0,1.21108617]
[1758917872450,0.36896783,109280.0,109270.0,0.96942744]
[1758917872649,0.36896783,109280.0,109270.0,0.36712617]
[1758917872845,0.36896783,109280.0,109270.0,1.21108617]
[1758917873952,0.36896783,109280.0,109270.0,0.87794254]
[1758917874151,0.36896783,109280.0,109270.0,0.03402254]
[1758917874356,1.08370128,109280.0,109270.0,0.01848254]
[1758917874752,1.44450128,109280.0,109270.0,0.03402254]
[1758917876655,1.44450128,109280.0,109270.0,0.01848254]
[1758917876851,1.46901969,109280.0,109270.0,0.01848254]
[1758917877051,0.1050042,109250.0,109240.0,0.467808]
[1758917877252,0.1273342,109250.0,109240.0,1.80402213]
[1758917878161,0.12741122,109250.0,109240.0,1.80402213]
[1758917878759,0.12741122,109250.0,109240.0,1.32070467]
[1758917878956,0.12741122,109250.0,109240.0,1.80402213]
[1758917879157,0.03594702,109250.0,109240.0,1.80902213]
[1758917880164,0.03594702,109250.0,109240.0,1.80702213]
[1758917881965,0.12741132,109250.0,109240.0,1.80702213]
[1758917882460,0.12741132,109250.0,109240.0,1.80698213]
[1758917886662,0.01361702,109250.0,109240.0,1.80698213]
[1758917886864,7.702e-05,109250.0,109240.0,1.81192213]
[1758917887564,7.702e-05,109250.0,109240.0,1.80698213]
[1758917887755,7.702e-05,109250.0,109240.0,1.8283799]
[1758917888856,0.01381702,109250.0,109240.0,0.9845399]
[1758917889159,0.36878005,109250.0,109240.0,0.04895444]
[1758917889355,0.36878005,109250.0,109240.0,0.2815965]
[1758917889556,0.36878005,109250.0,109240.0,1.22590602]
[1758917889760,0.36878005,109250.0,109240.0,1.2168292]
[1758917889960,0.36878005,109250.0,109240.0,0.3730692]
[1758917890262,0.36878005,109250.0,109240.0,0.97517047]
[1758917890762,0.36878005,109250.0,109240.0,1.22583817]
[1758917891662,0.36878005,109250.0,109240.0,1.2168292]
[1758917892059,0.12712132,109250.0,109240.0,1.225818]
[1758917892263,0.36878005,109250.0,109240.0,1.225818]
[1758917892664,0.36878005,109250.0,109240.0,1.225778]
[1758917897868,0.36878005,109250.0,109240.0,0.382058]
[1758917898068,0.36878005,109250.0,109240.0,1.225698]
[1758917898466,0.36878005,109250.0,109240.0,0.3730692]
[1758917898669,0.36878005,109250.0,109240.0,1.2167092]
[1758917900070,0.36878005,109250.0,109240.0,0.3730692]
[1758917900269,0.36878005,109250.0,109240.0,1.22583781]
[1758917900668,0.36878005,109250.0,109240.0,0.01854]
[1758917900869,0.36878005,109250.0,109240.0,0.86214]
[1758917901063,0.36878005,109250.0,109240.0,0.1100127]
[1758917902774,0.36878005,109250.0,109240.0,0.11924322]
[1758917903280,0.36878005,109250.0,109240.0,0.1100127]
[1758917905774,0.36878005,109250.0,109240.0,0.35167143]
[1758917906477,0.39355522,109250.0,109240.0,0.36102392]
[1758917906775,0.36878005,109250.0,109240.0,0.36102392]
[1758917908076,0.39355642,109250.0,109240.0,0.36102392]
[1758917909678,0.39355642,109250.0,109240.0,0.1100127]
[1758917909877,0.39355642,109250.0,109240.0,0.01854]
[1758917910076,1.15435642,109250.0,109240.0,0.003]
[1758917910474,1.15435642,109250.0,109240.0,0.01854]
[1758917911176,0.91269769,109250.0,109240.0,0.1100126]
[1758917911377,1.15435642,109250.0,109240.0,0.1100126]
[1758917912681,1.75605769,109250.0,109240.0,0.1100126]
[1758917912880,1.15435642,109250.0,109240.0,0.1100126]
[1758917913086,1.99767642,109250.0,109240.0,0.1100126]
[1758917913276,1.99767642,109250.0,109240.0,0.35167133]
[1758917913780,1.99767642,109250.0,109240.0,0.1100126]
[1758917914082,1.99767642,109250.0,109240.0,0.35167133]
[1758917914282,1.15435642,109250.0,109240.0,0.35167133]
[1758917914482,1.99767642,109250.0,109240.0,0.35167133]
[1758917914684,1.15435642,109250.0,109240.0,0.35167133]
[1758917914884,1.99767642,109250.0,109240.0,0.35167133]
[1758917915383,1.15435642,109250.0,109240.0,0.35167133]
[1758917915585,1.15435642,109250.0,109240.0,0.1100126]
[1758917915784,1.99763642,109250.0,109240.0,0.35167133]
[1758917916583,1.99763642,109250.0,109240.0,0.1100126]
[1758917917579,1.15435642,109250.0,109240.0,0.1100126]
[1758917917778,1.99755642,109250.0,109240.0,0.1100126]
[1758917918181,1.15435642,109250.0,109240.0,0.1100126]
[1758917918381,1.99755642,109250.0,109240.0,0.1100126]
[1758917918586,1.99755642,109250.0,109240.0,0.35167133]
[1758917918787,1.99755642,109250.0,109240.0,0.1100126]
[1758917918987,1.99755642,109250.0,109240.0,0.35167133]
[1758917919384,1.59755642,109250.0,109240.0,0.35167133]
[1758917919899,1.35589769,109250.0,109240.0,0.35167133]
[1758917920092,1.59755642,109250.0,109240.0,0.35167133]
[1758917920393,1.59755642,109250.0,109240.0,0.1100126]
[1758917920592,1.59755642,109250.0,109240.0,0.35167133]
[1758917921487,0.1718225,109240.0,109210.0,0.37466]
[1758917921683,0.091506,109200.0,109180.0,0.01386]
[1758917921889,1.10123186,109190.0,109180.0,0.03492]
[1758917922188,1.1268671,109190.0,109180.0,0.03492]
[1758917922384,1.8876671,109190.0,109180.0,0.03492]
[1758917922589,1.36134002,109190.0,109180.0,0.03492]
[1758917922795,2.20442002,109190.0,109180.0,0.03492]
[1758917923390,1.36134002,109190.0,109180.0,0.03492]
[1758917923786,2.19642002,109190.0,109180.0,0.03492]
[1758917923989,0.62816689,109190.0,109180.0,0.1264428]
[1758917924189,1.32130929,109190.0,109180.0,0.1264428]
[1758917924492,0.71988802,109190.0,109180.0,0.36810153]
[1758917925092,0.69404605,109190.0,109180.0,0.36810153]
[1758917925692,0.45238732,109190.0,109180.0,0.36810153]
[1758917926399,0.69404605,109190.0,109180.0,0.36810153]
[1758917926698,0.52621036,109190.0,109180.0,0.44926139]
[1758917927498,0.52621036,109190.0,109180.0,0.1264428]
[1758917928498,0.52621036,109190.0,109180.0,0.44926139]
[1758917931401,0.16541036,109190.0,109180.0,0.84926139]
[1758917932007,0.07389596,109190.0,109180.0,0.84926139]
[1758917933808,0.07389596,109190.0,109180.0,1.69246139]
[1758917936411,0.07389596,109190.0,109180.0,0.84926139]
[1758917936612,0.07389596,109190.0,109180.0,1.69246139]
[1758917938112,0.07389596,109190.0,109180.0,1.3696428]
[1758917938312,0.07389596,109190.0,109180.0,1.69246139]
[1758917938612,7.292e-05,109190.0,109180.0,1.21006139]
[1758917938805,7.292e-05,109190.0,109180.0,2.05326139]
[1758917939707,7.292e-05,109190.0,109180.0,2.05322139]
[1758917940814,7.292e-05,109190.0,109180.0,2.05318139]
[1758917945118,7.292e-05,109190.0,109180.0,2.05310139]
[1758917945414,7.292e-05,109190.0,109180.0,0.8872428]
[1758917945916,7.292e-05,109190.0,109180.0,1.21006139]
[1758917946115,7.292e-05,109190.0,109180.0,2.05306139]
[1758917946615,7.292e-05,109190.0,109180.0,1.21006139]
[1758917947022,7.292e-05,109190.0,109180.0,2.05306139]
[1758917948820,0.00407292,109190.0,109180.0,2.05306139]
[1758917949316,0.03047539,109190.0,109180.0,2.05306139]
[1758917951020,0.00407292,109190.0,109180.0,2.05306139]
[1758917951220,0.03055413,109190.0,109180.0,2.05306139]
[1758917951727,0.03055413,109190.0,109180.0,2.05298139]
[1758917952121,0.03055413,109190.0,109180.0,1.21006139]
[1758917952320,0.03055413,109190.0,109180.0,2.05294139]
[1758917955315,0.03055413,109190.0,109180.0,1.7301228]
[1758917955522,0.03055413,109190.0,109180.0,2.05290139]
[1758917956321,0.12206853,109190.0,109180.0,1.21006139]
[1758917956522,0.12206853,109190.0,109180.0,2.05286139]
[1758917956823,0.12206853,109190.0,109180.0,1.21006139]
[1758917957022,0.12206853,109190.0,109180.0,2.05286139]
[1758917957418,0.12206853,109190.0,109180.0,1.21006139]
[1758917957619,0.12206853,109190.0,109180.0,2.05286139]
[1758917959326,0.12206853,109190.0,109180.0,0.1264428]
[1758917959521,0.84488712,109190.0,109180.0,0.03492]
[1758917959726,1.20568712,109190.0,109180.0,0.9691628]
[1758917960529,1.20568712,109190.0,109180.0,0.03492]
[1758917960719,1.20568712,109190.0,109180.0,0.87764]
[1758917960920,1.20568712,109190.0,109180.0,0.9691628]
[1758917961116,0.88286853,109190.0,109180.0,0.9691628]
[1758917962029,0.48286853,109190.0,109180.0,0.9691628]
[1758917962226,0.03055413,109190.0,109180.0,1.29198139]
[1758917962430,0.12206853,109190.0,109180.0,1.29198139]
[1758917962626,0.48286853,109190.0,109180.0,1.29198139]
[1758917965036,0.48286853,109190.0,109180.0,0.9691628]
[1758917968436,0.88286853,109190.0,109180.0,0.9691228]
[1758917968835,0.88286853,109190.0,109170.0,0.01258314]
[1758917969040,1.17514139,109180.0,109170.0,0.01217029]
[1758917969340,2.07672742,109180.0,109170.0,0.01217029]
[1758917970236,2.07672742,109180.0,109170.0,9e-08]
[1758917971338,1.23704742,109180.0,109170.0,9e-08]
[1758917971530,2.07980742,109180.0,109170.0,9e-08]
[1758917972033,2.23170742,109180.0,109170.0,9e-08]
[1758917972336,1.2046226,109180.0,109170.0,9e-08]
[1758917972633,2.0474226,109180.0,109170.0,9e-08]
[1758917973536,0.8046226,109180.0,109170.0,0.02141009]
[1758917973744,1.6473826,109180.0,109170.0,0.02141009]
[1758917974039,0.8046226,109180.0,109170.0,0.02141009]
[1758917974240,1.6473826,109180.0,109170.0,0.02141009]
[1758917974634,1.6481026,109180.0,109170.0,0.02141009]
[1758917975545,0.8046226,109180.0,109170.0,0.02141009]
[1758917975742,1.6480226,109180.0,109170.0,0.02141009]
[1758917976244,1.6479426,109180.0,109170.0,0.02141009]
[1758917976543,1.6449426,109180.0,109170.0,0.02241009]
[1758917976738,1.6499426,109180.0,109170.0,0.02241009]
[1758917977844,0.8066226,109180.0,109170.0,0.02241009]
[1758917978044,1.6496626,109180.0,109170.0,0.11394129]
[1758917978247,0.48380401,109180.0,109170.0,0.11394129]
[1758917978841,1.32696401,109180.0,109170.0,0.11394129]
[1758917979543,1.6497426,109180.0,109170.0,0.11394129]
[1758917980044,0.48380401,109180.0,109170.0,0.11394129]
[1758917980247,1.3004028,109180.0,109170.0,0.11394129]
[1758917981942,0.4573228,109180.0,109170.0,0.11394129]
[1758917982147,1.3001628,109180.0,109170.0,0.11394129]
[1758917983036,1.2991628,109180.0,109170.0,0.11294129]
[1758917985446,0.3648,109180.0,109170.0,0.83575988]
[1758917985642,1.20764,109180.0,109170.0,0.83575988]
[1758917985849,1.2991628,109180.0,109170.0,0.51294129]
[1758917986349,0.3648,109180.0,109170.0,0.51294129]
[1758917986542,0.4563228,109180.0,109170.0,0.51294129]
[1758917986743,0.4553228,109180.0,109170.0,0.51294129]
[1758917987339,0.3638,109180.0,109170.0,0.51294129]
[1758917987947,0.3638,109180.0,109170.0,0.83575988]
[1758917988345,0.003,109180.0,109170.0,0.83575988]
[1758917988648,0.003,109180.0,109170.0,0.75506336]
[1758917993651,0.69744487,109180.0,109170.0,0.42141009]
[1758917993847,1.33956694,109180.0,109170.0,9e-08]
[1758917994243,1.3658133,109180.0,109170.0,9e-08]
[1758917995648,1.3658133,109180.0,109170.0,0.11302129]
[1758917999649,0.9658133,109180.0,109170.0,0.11302129]
[1758917999854,1.8086133,109180.0,109170.0,0.11302129]
[1758918000654,1.56649123,109180.0,109170.0,0.11302129]
[1758918000855,0.72369123,109180.0,109170.0,0.11302129]
[1758918001349,1.56649123,109180.0,109170.0,0.11302129]
[1758918001550,1.8086133,109180.0,109170.0,0.11302129]
[1758918003349,2.2086133,109180.0,109170.0,9e-08]
[1758918003853,0.0915312,109170.0,109160.0,0.01386]
[1758918004148,0.96288758,109170.0,109160.0,0.1053996]
[1758918004354,0.72076551,109170.0,109160.0,0.1053996]
[1758918004554,0.72076551,109170.0,109160.0,0.01386]
[1758918005147,0.72176551,109170.0,109160.0,0.01386]
[1758918005954,0.96488758,109170.0,109160.0,0.01386]
[1758918006748,0.96688758,109170.0,109160.0,0.01386]
[1758918007348,1.04021899,109170.0,109160.0,0.01386]
[1758918008059,1.0494863,109170.0,109160.0,0.01386]
[1758918012453,1.8922863,109170.0,109160.0,0.01386]
[1758918012655,1.0494863,109170.0,109160.0,0.01386]
[1758918012854,1.8922863,109170.0,109160.0,0.03629]
[1758918013955,1.8922863,109170.0,109160.0,0.01386]
[1758918020563,1.9109871,109170.0,109160.0,0.01386]
[1758918020770,1.0681871,109170.0,109160.0,0.01386]
[1758918020967,1.9109471,109170.0,109160.0,0.01386]
[1758918022470,1.0681871,109170.0,109160.0,0.01386]
[1758918022770,1.9109471,109170.0,109160.0,0.01386]
[1758918022966,1.0681871,109170.0,109160.0,0.01386]
[1758918023167,1.9109071,109170.0,109160.0,0.03629]
[1758918023573,1.0681871,109170.0,109160.0,0.03629]
[1758918023772,1.9109071,109170.0,109160.0,0.03629]
[1758918024375,1.0681871,109170.0,109160.0,0.01386]
[1758918024565,1.0681871,109170.0,109160.0,0.03629]
[1758918024870,1.9109071,109170.0,109160.0,0.03629]
[1758918025569,1.9109071,109170.0,109160.0,0.01386]
[1758918025570,1.0681871,109170.0,109160.0,0.01386]
[1758918025875,1.9109071,109170.0,109160.0,0.01386]
[1758918026173,2.0628071,109170.0,109160.0,0.01386]
[1758918029073,1.2200871,109170.0,109160.0,0.03629]
[1758918029477,2.0628071,109170.0,109160.0,0.03629]
[1758918029675,1.2200871,109170.0,109160.0,0.03629]
[1758918030170,2.0628071,109170.0,109160.0,0.03629]
[1758918030371,2.0627671,109170.0,109160.0,0.03629]
[1758918031276,1.2200871,109170.0,109160.0,0.03629]
[1758918031477,2.0627671,109170.0,109160.0,0.03629]
[1758918032077,1.2200871,109170.0,109160.0,0.03629]
[1758918032280,2.0627671,109170.0,109160.0,0.03629]
[1758918033075,1.2200871,109170.0,109160.0,0.03629]
[1758918033470,2.0627671,109170.0,109160.0,0.03629]
[1758918033672,1.2200871,109170.0,109160.0,0.03629]
[1758918033978,2.0627271,109170.0,109160.0,0.03629]
[1758918034878,1.2200871,109170.0,109160.0,0.03629]
[1758918035080,2.0627671,109170.0,109160.0,0.03629]
[1758918036282,2.0627671,109170.0,109160.0,0.01386]
[1758918037281,1.2200871,109170.0,109160.0,0.03599]
[1758918037483,2.0627271,109170.0,109160.0,0.03599]
[1758918038582,2.0440263,109170.0,109160.0,0.03599]
[1758918040581,2.0440263,109170.0,109160.0,0.01386]
[1758918041086,2.0440263,109170.0,109160.0,0.03599]
[1758918042077,2.0440263,109170.0,109160.0,0.01386]
[1758918042482,1.2013863,109170.0,109160.0,0.03599]
[1758918042682,2.0439463,109170.0,109160.0,0.03599]
[1758918042983,2.0439463,109170.0,109160.0,0.01386]
[1758918043795,1.2013863,109170.0,109160.0,0.03599]
[1758918043989,2.0439463,109170.0,109160.0,0.03599]
[1758918047799,2.0439463,109170.0,109160.0,0.01386]
[1758918048597,2.0439463,109170.0,109160.0,0.03599]
[1758918050799,1.55962216,109170.0,109160.0,0.03599]
[1758918050996,1.88267462,109170.0,109160.0,0.03599]
[1758918051793,1.04019462,109170.0,109160.0,0.03599]
[1758918051993,1.88267462,109170.0,109160.0,0.03599]
[1758918052187,1.04019462,109170.0,109160.0,0.03599]
[1758918052394,1.39841485,109170.0,109160.0,0.5275295]
[1758918052605,1.72146731,109170.0,109160.0,0.5275295]
[1758918052903,0.87902731,109170.0,109160.0,0.5275295]
[1758918053200,1.72146731,109170.0,109160.0,0.5275295]
[1758918054504,0.87902731,109170.0,109160.0,0.5275295]
[1758918054705,1.72146731,109170.0,109160.0,0.5275295]
[1758918055502,0.55597485,109170.0,109160.0,0.5275295]
[1758918055903,1.39837485,109170.0,109160.0,0.5275295]
[1758918056106,1.39837485,109170.0,109160.0,0.53649321]
[1758918056304,1.72142731,109170.0,109160.0,0.53649321]
[1758918057598,0.87902731,109170.0,109160.0,0.53649321]
[1758918058001,1.72142731,109170.0,109160.0,0.53649321]
[1758918060099,1.72142731,109170.0,109160.0,0.5275295]
[1758918060910,1.72142731,109170.0,109160.0,0.43599]
[1758918061800,1.72142731,109170.0,109160.0,0.5275295]
[1758918063010,1.72142731,109170.0,109160.0,0.43599]
[1758918067011,1.72142731,109170.0,109160.0,0.5275295]
[1758918069506,0.87902731,109170.0,109160.0,0.5275295]
[1758918069709,0.87902721,109170.0,109160.0,0.5275295]
[1758918070210,1.72122721,109170.0,109160.0,0.5275295]
[1758918070605,0.87902721,109170.0,109160.0,0.5275295]
[1758918070805,1.72122721,109170.0,109160.0,0.5275295]
[1758918071311,1.39817475,109170.0,109160.0,0.5275295]
[1758918071504,1.72122721,109170.0,109160.0,0.5275295]
[1758918074918,0.87902721,109170.0,109160.0,0.5275295]
[1758918075213,1.72114721,109170.0,109160.0,0.5275295]
[1758918075615,0.87902721,109170.0,109160.0,0.5275295]
[1758918075810,1.72114721,109170.0,109160.0,0.5275295]
[1758918079721,1.72114721,109170.0,109160.0,0.43599]
[1758918083225,0.87902721,109170.0,109160.0,0.43599]
[1758918083916,1.72098721,109170.0,109160.0,0.43599]
[1758918084626,1.72094721,109170.0,109160.0,0.43599]
[1758918085523,0.87902721,109170.0,109160.0,0.43599]
[1758918085824,1.72094721,109170.0,109160.0,0.43599]
[1758918086529,1.72090721,109170.0,109160.0,0.43599]
[1758918087529,1.39785475,109170.0,109160.0,0.43599]
[1758918087727,1.72090721,109170.0,109160.0,0.43599]
[1758918092033,1.72090721,109170.0,109160.0,0.03599]
[1758918096934,2.12090721,109170.0,109160.0,0.03599]
[1758918097235,1.72090721,109170.0,109160.0,0.03599]
[1758918101837,0.87902721,109170.0,109160.0,0.01386]